[Event "GrandPrix_29.05"]
[Site "Chess.com"]
[Date "2020.05.29"]
[Round "2"]
[White "WildBizon"]
[Black "jafarlib"]
[Result "1-0"]
[WhiteElo "2013"]
[BlackElo "2125"]
[TimeControl "600+2"]
[EndTime "9:48:32 PDT"]
[Termination "WildBizon won by resignation"]

1. e4 {[%clk 0:10:00.3]} 1... c5 {[%clk 0:10:00.2]} 2. Nf3 {[%clk 0:09:53]} 2...
Nc6 {[%clk 0:09:59.3]} 3. d4 {[%clk 0:09:53.3]} 3... cxd4 {[%clk 0:10:00]} 4.
Nxd4 {[%clk 0:09:51.9]} 4... g6 {[%clk 0:10:01.9]} 5. c4 {[%clk 0:09:46.7]} 5...
Bg7 {[%clk 0:10:02.2]} 6. Be3 {[%clk 0:09:45.3]} 6... Nf6 {[%clk 0:10:02.7]} 7.
Nc3 {[%clk 0:09:42.9]} 7... O-O {[%clk 0:10:01.9]} 8. Be2 {[%clk 0:09:37.9]}
8... d6 {[%clk 0:10:01.3]} 9. O-O {[%clk 0:09:32.9]} 9... Nxd4 {[%clk
0:09:58.6]} 10. Bxd4 {[%clk 0:09:32.9]} 10... Qa5 {[%clk 0:10:00.5]} 11. Rc1
{[%clk 0:09:24.2]} 11... Be6 {[%clk 0:09:59.7]} 12. b3 {[%clk 0:09:19.4]} 12...
Rfc8 {[%clk 0:09:58.7]} 13. Be3 {[%clk 0:08:57.9]} 13... b5 {[%clk 0:09:36.4]}
14. Nxb5 {[%clk 0:08:51]} 14... Nxe4 {[%clk 0:08:28.8]} 15. Bf3 {[%clk
0:08:50.7]} 15... f5 {[%clk 0:08:30.3]} 16. Nd4 {[%clk 0:08:40.6]} 16... Bf7
{[%clk 0:08:29.2]} 17. Qc2 {[%clk 0:08:36.8]} 17... d5 {[%clk 0:08:21.3]} 18.
Bxe4 {[%clk 0:08:33.5]} 18... fxe4 {[%clk 0:08:20.2]} 19. c5 {[%clk 0:08:20.2]}
19... e5 {[%clk 0:08:18.2]} 20. Ne2 {[%clk 0:08:21.4]} 20... Qa6 {[%clk
0:08:05.6]} 21. Ng3 {[%clk 0:08:21.8]} 21... h5 {[%clk 0:07:57.7]} 22. Bg5
{[%clk 0:08:17.5]} 22... Rab8 {[%clk 0:07:37.3]} 23. Rfd1 {[%clk 0:08:15.8]}
23... Bf8 {[%clk 0:07:36.6]} 24. c6 {[%clk 0:08:13.9]} 24... Rb6 {[%clk
0:07:30.6]} 25. c7 {[%clk 0:08:11.4]} 25... Rb7 {[%clk 0:07:25.9]} 26. Bd8
{[%clk 0:07:47.8]} 26... Bd6 {[%clk 0:07:12.5]} 27. Qb2 {[%clk 0:07:27.3]} 27...
Bxc7 {[%clk 0:07:02.2]} 28. Bxc7 {[%clk 0:07:23.3]} 28... Rbxc7 {[%clk
0:07:03.9]} 29. Rxc7 {[%clk 0:07:23.8]} 29... Rxc7 {[%clk 0:07:05.8]} 30. Qxe5
{[%clk 0:07:25.3]} 30... Rc8 {[%clk 0:06:46.5]} 31. Qg5 {[%clk 0:07:16.2]} 31...
Kh7 {[%clk 0:06:17.6]} 32. h4 {[%clk 0:07:17.1]} 32... Qxa2 {[%clk 0:06:08.5]}
33. Nf5 {[%clk 0:07:12.7]} 33... gxf5 {[%clk 0:05:44.6]} 34. Qxf5+ {[%clk
0:07:14.6]} 34... Kg7 {[%clk 0:05:45.9]} 35. Qxc8 {[%clk 0:07:14.5]} 35... Qxb3
{[%clk 0:05:47.1]} 36. Ra1 {[%clk 0:07:04.6]} 36... e3 {[%clk 0:05:42.1]} 37.
Qf5 {[%clk 0:06:50.5]} 37... Qb2 {[%clk 0:04:00.8]} 38. Rxa7 {[%clk 0:06:36.7]}
38... exf2+ {[%clk 0:04:00.6]} 39. Qxf2 {[%clk 0:06:33.1]} 39... Qb1+ {[%clk
0:03:53.8]} 40. Kh2 {[%clk 0:06:31.1]} 40... Qg6 {[%clk 0:03:53]} 41. Qd4+
{[%clk 0:06:28.9]} 41... Kh7 {[%clk 0:03:50.4]} 42. Qxd5 {[%clk 0:06:18.6]}
42... Kg7 {[%clk 0:03:47.9]} 43. Qe5+ {[%clk 0:06:19.8]} 43... Kh7 {[%clk
0:03:48.5]} 44. Ra8 {[%clk 0:06:12.9]} 44... Bg8 {[%clk 0:03:43.5]} 45. Ra5
{[%clk 0:06:01.5]} 45... Bf7 {[%clk 0:03:43.5]} 46. Qf4 {[%clk 0:06:00.7]} 46...
Qe6 {[%clk 0:03:40.5]} 47. Ra7 {[%clk 0:05:55]} 47... Kg7 {[%clk 0:03:40.5]} 48.
Qg5+ {[%clk 0:05:55.1]} 48... Qg6 {[%clk 0:03:41.6]} 49. Qxg6+ {[%clk 0:05:56]}
49... Kxg6 {[%clk 0:03:43.5]} 50. Kg3 {[%clk 0:05:57.5]} 50... Be6 {[%clk
0:03:44.7]} 51. Kf4 {[%clk 0:05:58.6]} 51... Bg4 {[%clk 0:03:45.4]} 52. g3
{[%clk 0:06:00]} 52... Bd1 {[%clk 0:03:46]} 53. Ra6+ {[%clk 0:06:00.7]} 53...
Kg7 {[%clk 0:03:45.9]} 54. Kg5 {[%clk 0:06:02.6]} 54... Bg4 {[%clk 0:03:46.7]}
55. Ra7+ {[%clk 0:06:03.9]} 55... Kf8 {[%clk 0:03:48.1]} 56. Rh7 {[%clk
0:06:04]} 1-0

[Event "GrandPrix_29.05"]
[Site "Chess.com"]
[Date "2020.05.29"]
[Round "2"]
[White "grzechu96"]
[Black "ebret"]
[Result "1-0"]
[WhiteElo "2552"]
[BlackElo "2106"]
[TimeControl "600+2"]
[EndTime "9:48:34 PDT"]
[Termination "grzechu96 won by resignation"]

1. e4 {[%clk 0:10:01.9]} 1... e5 {[%clk 0:10:00.4]} 2. Nf3 {[%clk 0:10:01.9]}
2... Nc6 {[%clk 0:10:01.4]} 3. Bc4 {[%clk 0:09:57.2]} 3... Bc5 {[%clk
0:10:01.6]} 4. O-O {[%clk 0:09:56.7]} 4... Nf6 {[%clk 0:09:59.9]} 5. d3 {[%clk
0:09:57.7]} 5... a6 {[%clk 0:09:53.5]} 6. c3 {[%clk 0:09:57]} 6... d6 {[%clk
0:09:51.1]} 7. Bb3 {[%clk 0:09:55]} 7... O-O {[%clk 0:09:51.6]} 8. h3 {[%clk
0:09:54.5]} 8... Re8 {[%clk 0:09:44]} 9. Re1 {[%clk 0:09:48.1]} 9... Be6 {[%clk
0:09:41.3]} 10. Bxe6 {[%clk 0:09:08.2]} 10... Rxe6 {[%clk 0:09:43.2]} 11. d4
{[%clk 0:09:09.4]} 11... exd4 {[%clk 0:09:38.6]} 12. cxd4 {[%clk 0:09:10.4]}
12... Bb4 {[%clk 0:09:37.8]} 13. d5 {[%clk 0:09:11.7]} 13... Bxe1 {[%clk
0:09:23.6]} 14. dxe6 {[%clk 0:07:35]} 14... Bb4 {[%clk 0:08:09.1]} 15. exf7+
{[%clk 0:07:33.9]} 15... Kxf7 {[%clk 0:08:11]} 16. Be3 {[%clk 0:06:17.9]} 16...
h6 {[%clk 0:06:46.8]} 17. a3 {[%clk 0:04:27]} 17... Bc5 {[%clk 0:06:39.3]} 18.
Qb3+ {[%clk 0:04:25.5]} 18... Kf8 {[%clk 0:06:22.7]} 19. Bxc5 {[%clk 0:03:53.8]}
19... dxc5 {[%clk 0:06:24.6]} 20. Nc3 {[%clk 0:03:55.1]} 20... b5 {[%clk
0:06:01.2]} 21. e5 {[%clk 0:03:36.1]} 21... c4 {[%clk 0:05:27.7]} 22. Qc2 {[%clk
0:03:33.6]} 22... Nd5 {[%clk 0:05:24.6]} 23. Qf5+ {[%clk 0:03:09.6]} 23... Ke8
{[%clk 0:04:33.9]} 24. Qg6+ {[%clk 0:03:07.6]} 24... Kf8 {[%clk 0:04:27.9]} 25.
Qxc6 {[%clk 0:03:04.5]} 1-0

[Event "GrandPrix_29.05"]
[Site "Chess.com"]
[Date "2020.05.29"]
[Round "2"]
[White "Paulz64"]
[Black "Nikame"]
[Result "0-1"]
[WhiteElo "1910"]
[BlackElo "2108"]
[TimeControl "600+2"]
[EndTime "9:48:39 PDT"]
[Termination "Nikame won by checkmate"]

1. d4 {[%clk 0:10:01.9]} 1... Nf6 {[%clk 0:09:57.7]} 2. c4 {[%clk 0:10:02.4]}
2... e6 {[%clk 0:09:58.2]} 3. Nf3 {[%clk 0:10:02.4]} 3... a6 {[%clk 0:09:57.3]}
4. Nc3 {[%clk 0:09:54.9]} 4... c5 {[%clk 0:09:56.8]} 5. e4 {[%clk 0:09:37.8]}
5... cxd4 {[%clk 0:09:56.2]} 6. Nxd4 {[%clk 0:09:38.7]} 6... Qc7 {[%clk
0:09:50.3]} 7. Be2 {[%clk 0:09:33.5]} 7... d6 {[%clk 0:09:47.5]} 8. O-O {[%clk
0:09:30.7]} 8... Be7 {[%clk 0:09:48.1]} 9. Be3 {[%clk 0:09:31.4]} 9... Nbd7
{[%clk 0:09:45.5]} 10. Rc1 {[%clk 0:09:22.9]} 10... O-O {[%clk 0:09:43.7]} 11.
f4 {[%clk 0:09:22.2]} 11... Re8 {[%clk 0:09:36.1]} 12. f5 {[%clk 0:09:11.4]}
12... Ne5 {[%clk 0:09:33]} 13. Kh1 {[%clk 0:08:55.8]} 13... Bd7 {[%clk
0:09:32.7]} 14. b3 {[%clk 0:08:51.5]} 14... Rad8 {[%clk 0:09:18.6]} 15. Qd2
{[%clk 0:08:36.4]} 15... b6 {[%clk 0:09:15.6]} 16. Bg1 {[%clk 0:07:57.9]} 16...
Bc8 {[%clk 0:09:06.6]} 17. Qe3 {[%clk 0:07:44.9]} 17... Bf8 {[%clk 0:09:05.7]}
18. Qg3 {[%clk 0:07:35.3]} 18... Kh8 {[%clk 0:08:59.3]} 19. Be3 {[%clk
0:07:20.5]} 19... Qb7 {[%clk 0:08:58.7]} 20. Bg5 {[%clk 0:06:02.2]} 20... Be7
{[%clk 0:08:54.6]} 21. Qh4 {[%clk 0:05:45]} 21... exf5 {[%clk 0:08:42.1]} 22.
Nxf5 {[%clk 0:05:24.8]} 22... Bxf5 {[%clk 0:08:40.3]} 23. Rxf5 {[%clk
0:05:21.2]} 23... Ng6 {[%clk 0:08:38.7]} 24. Qh3 {[%clk 0:05:06.1]} 24... Nxe4
{[%clk 0:08:37.3]} 25. Nxe4 {[%clk 0:05:04.2]} 25... Qxe4 {[%clk 0:08:36.7]} 26.
Bd3 {[%clk 0:05:02.3]} 26... Qe6 {[%clk 0:08:29.4]} 27. Bxe7 {[%clk 0:04:40.1]}
27... Rxe7 {[%clk 0:08:28.7]} 28. Rcf1 {[%clk 0:04:41.5]} 28... Kg8 {[%clk
0:08:26.7]} 29. Qf3 {[%clk 0:04:23.3]} 29... Ne5 {[%clk 0:08:19.6]} 30. Qd1
{[%clk 0:04:23.7]} 30... Nxd3 {[%clk 0:08:19.2]} 31. Qxd3 {[%clk 0:04:21]} 31...
h6 {[%clk 0:08:10.6]} 32. h3 {[%clk 0:04:15.4]} 32... Qg6 {[%clk 0:07:55.3]} 33.
Qf3 {[%clk 0:04:08.3]} 33... Rde8 {[%clk 0:07:47.2]} 34. Qd5 {[%clk 0:04:08.5]}
34... Qe6 {[%clk 0:07:43.3]} 35. Qc6 {[%clk 0:04:01.9]} 35... Qg6 {[%clk
0:06:59.7]} 36. Rxf7 {[%clk 0:03:55]} 36... Kh7 {[%clk 0:06:47.2]} 37. Rxe7
{[%clk 0:03:49.9]} 37... Rxe7 {[%clk 0:06:47.6]} 38. Qxb6 {[%clk 0:03:49.3]}
38... Re2 {[%clk 0:06:47.8]} 39. Rf2 {[%clk 0:03:49.7]} 39... Re1+ {[%clk
0:06:47.1]} 40. Kh2 {[%clk 0:03:50.7]} 40... Qb1 {[%clk 0:06:36]} 41. Qc6 {[%clk
0:03:49.2]} 41... Rh1+ {[%clk 0:06:35.8]} 42. Kg3 {[%clk 0:03:50.2]} 42... Qg6+
{[%clk 0:06:34.7]} 43. Kf3 {[%clk 0:03:49.3]} 43... Rd1 {[%clk 0:06:32.2]} 44.
g4 {[%clk 0:03:44.5]} 44... Qd3+ {[%clk 0:06:21.1]} 45. Kg2 {[%clk 0:03:45.2]}
45... Qb1 {[%clk 0:06:21.6]} 46. Kf3 {[%clk 0:03:35.9]} 46... Re1 {[%clk
0:05:58.8]} 47. Qxd6 {[%clk 0:03:22.8]} 47... Qe4+ {[%clk 0:05:58.9]} 48. Kg3
{[%clk 0:03:23.8]} 48... Rg1+ {[%clk 0:05:41.8]} 49. Kh2 {[%clk 0:03:24.8]}
49... Qh1# {[%clk 0:05:41.3]} 0-1

[Event "GrandPrix_29.05"]
[Site "Chess.com"]
[Date "2020.05.29"]
[Round "2"]
[White "Kobalia"]
[Black "RaphaeI"]
[Result "1-0"]
[WhiteElo "2182"]
[BlackElo "2105"]
[TimeControl "600+2"]
[EndTime "9:48:42 PDT"]
[Termination "Kobalia won by resignation"]

1. e4 {[%clk 0:09:58]} 1... c5 {[%clk 0:09:57.4]} 2. Nf3 {[%clk 0:09:56.2]} 2...
Nc6 {[%clk 0:09:56.4]} 3. Bb5 {[%clk 0:09:55.6]} 3... g6 {[%clk 0:09:56.8]} 4.
Bxc6 {[%clk 0:09:55.5]} 4... dxc6 {[%clk 0:09:57.1]} 5. O-O {[%clk 0:09:55.5]}
5... Bg7 {[%clk 0:09:57.6]} 6. d3 {[%clk 0:09:54.8]} 6... Nf6 {[%clk 0:09:51.2]}
7. a4 {[%clk 0:09:53.2]} 7... O-O {[%clk 0:09:36]} 8. a5 {[%clk 0:09:50.7]} 8...
Qc7 {[%clk 0:08:39.5]} 9. Nbd2 {[%clk 0:09:37.3]} 9... Nh5 {[%clk 0:07:55.8]}
10. Nb3 {[%clk 0:08:44.7]} 10... c4 {[%clk 0:07:18.6]} 11. dxc4 {[%clk
0:08:43.6]} 11... Be6 {[%clk 0:07:11.2]} 12. Qe2 {[%clk 0:08:33.9]} 12... Rad8
{[%clk 0:06:52.1]} 13. Nc5 {[%clk 0:08:02.3]} 13... Bc8 {[%clk 0:06:00.9]} 14.
Nd3 {[%clk 0:08:00.8]} 14... Bg4 {[%clk 0:05:51.1]} 15. h3 {[%clk 0:07:58.5]}
15... Bxf3 {[%clk 0:05:52.4]} 16. Qxf3 {[%clk 0:07:58.2]} 16... Rd4 {[%clk
0:05:54.1]} 17. Be3 {[%clk 0:07:43]} 17... Rxc4 {[%clk 0:05:53.2]} 18. c3 {[%clk
0:07:29.6]} 18... Nf6 {[%clk 0:05:03.1]} 19. Bd4 {[%clk 0:07:10]} 19... c5
{[%clk 0:04:43.4]} 20. Bxf6 {[%clk 0:06:03.8]} 20... Bxf6 {[%clk 0:04:35.1]} 21.
Nf4 {[%clk 0:05:48.8]} 21... Qe5 {[%clk 0:02:43.9]} 22. Rfe1 {[%clk 0:05:47.1]}
22... b5 {[%clk 0:02:16.8]} 23. axb6 {[%clk 0:05:30.8]} 23... axb6 {[%clk
0:02:18.7]} 24. Nd5 {[%clk 0:05:31.7]} 24... b5 {[%clk 0:02:14.8]} 25. Nb6
{[%clk 0:05:27.8]} 1-0

[Event "GrandPrix_29.05"]
[Site "Chess.com"]
[Date "2020.05.29"]
[Round "2"]
[White "jacky72"]
[Black "Saqo007"]
[Result "1-0"]
[WhiteElo "1828"]
[BlackElo "2066"]
[TimeControl "600+2"]
[EndTime "9:48:57 PDT"]
[Termination "jacky72 won by checkmate"]

1. d4 {[%clk 0:09:56.7]} 1... d5 {[%clk 0:09:58.8]} 2. c4 {[%clk 0:09:57.4]}
2... e6 {[%clk 0:09:59.6]} 3. Nc3 {[%clk 0:09:57.6]} 3... Nf6 {[%clk 0:09:58.8]}
4. cxd5 {[%clk 0:09:57.7]} 4... exd5 {[%clk 0:09:59.6]} 5. Bg5 {[%clk
0:09:57.2]} 5... c6 {[%clk 0:10:00.8]} 6. Qc2 {[%clk 0:09:57.6]} 6... Nbd7
{[%clk 0:09:59.5]} 7. e3 {[%clk 0:09:56.4]} 7... Be7 {[%clk 0:10:00.8]} 8. Bd3
{[%clk 0:09:57.1]} 8... O-O {[%clk 0:10:01.3]} 9. Nf3 {[%clk 0:09:57.5]} 9...
Re8 {[%clk 0:10:00.3]} 10. h3 {[%clk 0:09:58.4]} 10... Nf8 {[%clk 0:09:57.2]}
11. O-O {[%clk 0:09:55.2]} 11... Ne4 {[%clk 0:09:46.2]} 12. Bf4 {[%clk
0:09:54.2]} 12... f5 {[%clk 0:09:38.3]} 13. Ne5 {[%clk 0:09:39.2]} 13... g5
{[%clk 0:09:21.6]} 14. Bh2 {[%clk 0:09:23.7]} 14... Ng6 {[%clk 0:09:14.3]} 15.
f3 {[%clk 0:09:18.5]} 15... Nxc3 {[%clk 0:09:11.7]} 16. bxc3 {[%clk 0:09:20.4]}
16... Nxe5 {[%clk 0:09:09.7]} 17. Bxe5 {[%clk 0:09:22.3]} 17... Rf8 {[%clk
0:09:07.9]} 18. e4 {[%clk 0:09:22.4]} 18... c5 {[%clk 0:08:04.3]} 19. exf5
{[%clk 0:09:17.5]} 19... c4 {[%clk 0:08:03.3]} 20. f6 {[%clk 0:09:11.4]} 20...
cxd3 {[%clk 0:08:02.7]} 21. fxe7 {[%clk 0:09:11.6]} 21... dxc2 {[%clk 0:08:00]}
22. exd8=N {[%clk 0:09:09.3]} 22... Rxd8 {[%clk 0:08:01.9]} 23. g4 {[%clk
0:09:05.2]} 23... Bd7 {[%clk 0:07:59.7]} 24. c4 {[%clk 0:08:02.7]} 24... dxc4
{[%clk 0:07:44.5]} 25. a4 {[%clk 0:08:02.5]} 25... Bc6 {[%clk 0:07:22.6]} 26.
Ra2 {[%clk 0:07:59.2]} 26... Bxf3 {[%clk 0:06:56.9]} 27. Rxc2 {[%clk 0:07:58.4]}
27... Be4 {[%clk 0:06:33.5]} 28. Rc3 {[%clk 0:07:45.1]} 28... Bd5 {[%clk
0:05:58.5]} 29. Rf5 {[%clk 0:07:42.8]} 29... h6 {[%clk 0:05:56]} 30. Rf6 {[%clk
0:07:42.7]} 30... Kh7 {[%clk 0:05:50.7]} 31. h4 {[%clk 0:07:40.5]} 31... Rf8
{[%clk 0:05:43.2]} 32. hxg5 {[%clk 0:07:40.2]} 32... hxg5 {[%clk 0:05:43.4]} 33.
Rh3+ {[%clk 0:07:34]} 33... Kg8 {[%clk 0:05:35.5]} 34. Rd6 {[%clk 0:06:54.5]}
34... Bc6 {[%clk 0:04:25]} 35. d5 {[%clk 0:05:28.7]} 35... Rfe8 {[%clk
0:02:42.4]} 36. Rg6+ {[%clk 0:05:17.5]} 36... Kf7 {[%clk 0:02:40.9]} 37. Rg7+
{[%clk 0:05:19.4]} 37... Kf8 {[%clk 0:02:38.7]} 38. Rh8# {[%clk 0:05:21.3]} 1-0

[Event "GrandPrix_29.05"]
[Site "Chess.com"]
[Date "2020.05.29"]
[Round "2"]
[White "SuperFineHipster"]
[Black "titan013"]
[Result "1-0"]
[WhiteElo "2106"]
[BlackElo "1044"]
[TimeControl "600+2"]
[EndTime "9:48:58 PDT"]
[Termination "SuperFineHipster won on time"]

1. Nf3 {[%clk 0:09:56.6]} 1... d5 {[%clk 0:09:55.2]} 2. c4 {[%clk 0:09:54.7]}
2... dxc4 {[%clk 0:09:55.5]} 3. Na3 {[%clk 0:09:53.6]} 3... Nf6 {[%clk
0:09:55.6]} 4. Nxc4 {[%clk 0:09:54.7]} 4... b5 {[%clk 0:09:55.9]} 5. Nce5 {[%clk
0:09:45.3]} 5... Bb7 {[%clk 0:09:56.5]} 6. e3 {[%clk 0:09:39.8]} 6... a6 {[%clk
0:09:56.2]} 7. a4 {[%clk 0:09:40.7]} 7... b4 {[%clk 0:09:55.6]} 8. Bc4 {[%clk
0:09:27.4]} 8... Bd5 {[%clk 0:09:56.3]} 9. Qb3 {[%clk 0:09:23.4]} 9... Qd6
{[%clk 0:09:36.8]} 10. Bxd5 {[%clk 0:08:44.7]} 10... Nxd5 {[%clk 0:09:03.3]} 11.
e4 {[%clk 0:08:20.2]} 11... f6 {[%clk 0:09:03.1]} 12. d4 {[%clk 0:08:20.1]}
12... c6 {[%clk 0:08:47.5]} 13. exd5 {[%clk 0:08:12]} 13... fxe5 {[%clk
0:08:48]} 14. dxe5 {[%clk 0:08:11.9]} 14... Qxd5 {[%clk 0:08:49.4]} 15. Qxb4
{[%clk 0:08:13.4]} 15... e6 {[%clk 0:08:47.7]} 16. Qb7 {[%clk 0:08:01.6]} 16...
Qe4+ {[%clk 0:08:28]} 17. Be3 {[%clk 0:07:56.3]} 17... Bb4+ {[%clk 0:08:28.2]}
18. Kf1 {[%clk 0:07:46.5]} 18... O-O {[%clk 0:07:48.3]} 19. Qxa8 {[%clk
0:07:36.9]} 19... Nd7 {[%clk 0:07:44]} 20. Qxa6 {[%clk 0:07:15.1]} 20... Rxf3
{[%clk 0:06:07.8]} 21. gxf3 {[%clk 0:07:11.2]} 21... Qxf3 {[%clk 0:06:06.5]} 22.
Rg1 {[%clk 0:07:11.4]} 22... Nxe5 {[%clk 0:06:04.2]} 23. Qc8+ {[%clk 0:07:05.8]}
23... Bf8 {[%clk 0:06:02.4]} 24. Qxe6+ {[%clk 0:07:06.3]} 24... Nf7 {[%clk
0:06:03.7]} 25. a5 {[%clk 0:06:55.6]} 1-0

[Event "GrandPrix_29.05"]
[Site "Chess.com"]
[Date "2020.05.29"]
[Round "2"]
[White "Arasvard"]
[Black "bernereremit"]
[Result "0-1"]
[WhiteElo "2102"]
[BlackElo "2153"]
[TimeControl "600+2"]
[EndTime "9:49:06 PDT"]
[Termination "bernereremit won by resignation"]

1. d4 {[%clk 0:10:01.9]} 1... Nf6 {[%clk 0:10:00.1]} 2. c4 {[%clk 0:10:02]} 2...
g6 {[%clk 0:10:00.8]} 3. f3 {[%clk 0:10:02.3]} 3... d5 {[%clk 0:10:00.5]} 4.
cxd5 {[%clk 0:10:02.8]} 4... Nxd5 {[%clk 0:10:02.4]} 5. e4 {[%clk 0:10:03.7]}
5... Nb6 {[%clk 0:10:03.8]} 6. Nc3 {[%clk 0:10:04.7]} 6... Bg7 {[%clk
0:10:05.1]} 7. Be3 {[%clk 0:10:05.7]} 7... O-O {[%clk 0:10:06.3]} 8. Qd2 {[%clk
0:10:07.2]} 8... Nc6 {[%clk 0:10:06.7]} 9. O-O-O {[%clk 0:10:07.8]} 9... Qd6
{[%clk 0:10:07.9]} 10. Nb5 {[%clk 0:10:08.1]} 10... Qd7 {[%clk 0:10:08.7]} 11.
Kb1 {[%clk 0:10:09.5]} 11... a6 {[%clk 0:10:08.5]} 12. Nc3 {[%clk 0:10:09.8]}
12... Rd8 {[%clk 0:10:04.1]} 13. d5 {[%clk 0:10:10.4]} 13... Ne5 {[%clk
0:10:03.3]} 14. Bd4 {[%clk 0:09:09.8]} 14... c5 {[%clk 0:09:16.9]} 15. Bxc5
{[%clk 0:09:01]} 15... Nec4 {[%clk 0:09:09.6]} 16. Qf2 {[%clk 0:08:03.2]} 16...
Nxb2 {[%clk 0:08:26.8]} 17. Bxb6 {[%clk 0:07:26.1]} 17... Bxc3 {[%clk
0:08:25.6]} 18. Rc1 {[%clk 0:07:18.2]} 18... Bg7 {[%clk 0:07:23.2]} 19. Bxd8
{[%clk 0:06:32.3]} 19... Qxd8 {[%clk 0:07:22.3]} 20. Bc4 {[%clk 0:04:54.7]}
20... b5 {[%clk 0:07:12.1]} 21. Bb3 {[%clk 0:04:54.7]} 21... Nd3 {[%clk
0:07:00.8]} 22. Qc2 {[%clk 0:04:40.9]} 22... Nxc1 {[%clk 0:06:58.7]} 23. Qxc1
{[%clk 0:04:41.7]} 23... Bd7 {[%clk 0:06:49.1]} 24. Ne2 {[%clk 0:04:38.8]} 24...
a5 {[%clk 0:06:41.5]} 25. d6 {[%clk 0:03:28.9]} 25... a4 {[%clk 0:06:03.3]} 26.
Bd5 {[%clk 0:03:24.3]} 26... Rc8 {[%clk 0:05:54.4]} 27. Qg5 {[%clk 0:02:38]}
27... Bf6 {[%clk 0:05:16.3]} 28. dxe7 {[%clk 0:02:28.4]} 28... Qxe7 {[%clk
0:05:04.9]} 29. Qd2 {[%clk 0:02:28.6]} 29... Qe5 {[%clk 0:04:47.6]} 0-1

[Event "GrandPrix_29.05"]
[Site "Chess.com"]
[Date "2020.05.29"]
[Round "2"]
[White "Sporty207"]
[Black "Zhuu96"]
[Result "0-1"]
[WhiteElo "2233"]
[BlackElo "2599"]
[TimeControl "600+2"]
[EndTime "9:49:19 PDT"]
[Termination "Zhuu96 won by resignation"]

1. d4 {[%clk 0:09:59.9]} 1... Nf6 {[%clk 0:09:58.2]} 2. c4 {[%clk 0:10:00.3]}
2... e6 {[%clk 0:09:57.1]} 3. Nc3 {[%clk 0:10:00.7]} 3... Bb4 {[%clk 0:09:57.3]}
4. e3 {[%clk 0:10:01.8]} 4... c5 {[%clk 0:09:55.6]} 5. Ne2 {[%clk 0:10:01.3]}
5... cxd4 {[%clk 0:09:53.4]} 6. exd4 {[%clk 0:09:59.9]} 6... O-O {[%clk
0:09:54]} 7. Bd2 {[%clk 0:09:49.3]} 7... b6 {[%clk 0:09:50.1]} 8. a3 {[%clk
0:09:29.7]} 8... Be7 {[%clk 0:09:39]} 9. Nf4 {[%clk 0:09:26.2]} 9... Bb7 {[%clk
0:09:35.1]} 10. Bd3 {[%clk 0:09:22.6]} 10... Nc6 {[%clk 0:09:34.6]} 11. Be3
{[%clk 0:09:10.7]} 11... Bd6 {[%clk 0:09:07.1]} 12. O-O {[%clk 0:09:01.2]} 12...
Nxd4 {[%clk 0:09:04]} 13. Bxh7+ {[%clk 0:08:12.7]} 13... Kxh7 {[%clk 0:09:02.7]}
14. Qxd4 {[%clk 0:08:13]} 14... Qb8 {[%clk 0:09:03.2]} 15. h3 {[%clk 0:07:38.8]}
15... Kg8 {[%clk 0:08:54.8]} 16. Nb5 {[%clk 0:07:17.9]} 16... Be5 {[%clk
0:08:37.6]} 17. Qd2 {[%clk 0:06:50.7]} 17... Ne4 {[%clk 0:08:36.7]} 18. Qc1
{[%clk 0:06:50.1]} 18... Rc8 {[%clk 0:08:28.3]} 19. Nd3 {[%clk 0:06:37.1]} 19...
d5 {[%clk 0:08:21.3]} 20. Nxe5 {[%clk 0:06:34.4]} 20... Qxe5 {[%clk 0:08:21.8]}
21. Bd4 {[%clk 0:06:35.4]} 21... Qh5 {[%clk 0:08:11.6]} 22. b3 {[%clk
0:06:02.3]} 22... dxc4 {[%clk 0:07:56]} 23. bxc4 {[%clk 0:06:02.8]} 23... a6
{[%clk 0:07:51.9]} 24. Nc3 {[%clk 0:05:33.2]} 24... Rxc4 {[%clk 0:07:49.5]} 25.
Qe3 {[%clk 0:05:34.8]} 25... Rd8 {[%clk 0:07:16.3]} 26. Nxe4 {[%clk 0:05:16.4]}
26... Rdxd4 {[%clk 0:07:15.1]} 27. Ng3 {[%clk 0:05:07.5]} 27... Qd5 {[%clk
0:07:13.1]} 28. f3 {[%clk 0:05:05.7]} 28... b5 {[%clk 0:07:13.1]} 29. Rac1
{[%clk 0:04:59.9]} 29... Rd3 {[%clk 0:07:10.7]} 30. Qb6 {[%clk 0:04:13]} 30...
Qd4+ {[%clk 0:06:52.7]} 31. Qxd4 {[%clk 0:04:08.6]} 31... Rcxd4 {[%clk
0:06:52.8]} 32. Rc7 {[%clk 0:03:58.5]} 32... Rd7 {[%clk 0:06:49]} 33. Rxd7
{[%clk 0:03:55.6]} 33... Rxd7 {[%clk 0:06:48.9]} 34. Kf2 {[%clk 0:03:30.6]}
34... Rd2+ {[%clk 0:06:46.9]} 35. Ne2 {[%clk 0:03:27.2]} 35... Ra2 {[%clk
0:06:47.5]} 36. Rc1 {[%clk 0:03:19.1]} 36... Bd5 {[%clk 0:06:47.8]} 37. Rc3
{[%clk 0:02:57.1]} 37... Bc4 {[%clk 0:06:47.3]} 38. Re3 {[%clk 0:02:57.1]} 38...
Kh7 {[%clk 0:06:42.1]} 39. f4 {[%clk 0:02:53.2]} 39... Bxe2 {[%clk 0:06:29.8]}
40. Rxe2 {[%clk 0:02:53.2]} 40... Rxe2+ {[%clk 0:06:30.2]} 41. Kxe2 {[%clk
0:02:54.2]} 41... a5 {[%clk 0:06:23.2]} 42. Kd3 {[%clk 0:02:48.1]} 42... Kg6
{[%clk 0:06:23.2]} 43. g4 {[%clk 0:02:42.1]} 43... Kf6 {[%clk 0:06:23.4]} 44.
Kd4 {[%clk 0:02:38.1]} 44... g5 {[%clk 0:06:07]} 45. fxg5+ {[%clk 0:02:25.6]}
45... Kxg5 {[%clk 0:06:07.5]} 46. Kc5 {[%clk 0:02:27.5]} 46... b4 {[%clk
0:06:08.6]} 47. axb4 {[%clk 0:02:28.3]} 47... axb4 {[%clk 0:06:09.8]} 48. Kxb4
{[%clk 0:02:30.2]} 48... Kh4 {[%clk 0:06:11.1]} 49. Kc5 {[%clk 0:02:24.2]} 49...
Kxh3 {[%clk 0:06:11.3]} 0-1